bitfinex/quotes_ETHUSD_20250903
["timestamp","ask_amount","ask_price","bid_price","bid_amount"]
[1756870748340,5.57741403,4331.9,4331.8,0.024]
[1756870748510,4.67451403,4331.9,4331.8,0.024]
[1756870748711,8.23591403,4331.9,4331.8,0.024]
[1756870748925,4.36591403,4331.9,4331.8,0.024]
[1756870749125,5.23591403,4331.9,4331.8,0.024]
[1756870749324,3.87,4331.9,4331.8,0.7806]
[1756870749639,4.6135,4331.9,4331.8,0.024]
[1756870750212,4.1786,4331.9,4331.8,0.024]
[1756870750412,3.87,4331.9,4331.8,0.024]
[1756870751745,4.1786,4331.9,4331.8,0.024]
[1756870752107,4.6135,4331.9,4331.8,0.024]
[1756870752311,6.27941403,4331.9,4331.8,0.024]
[1756870755715,5.84451403,4331.9,4331.8,2.33250916]
[1756870755911,5.53591403,4331.9,4331.8,2.33250916]
[1756870756111,3.87,4331.9,4331.8,2.33250916]
[1756870756443,3.87,4331.9,4331.8,0.024]
[1756870756639,3.87,4331.9,4331.8,2.33250916]
[1756870757347,3.87,4331.9,4331.8,2.63890916]
[1756870758460,3.87,4331.9,4331.8,0.3304]
[1756870758633,3.87,4331.9,4331.8,0.024]
[1756870758838,3.87,4331.9,4331.8,2.33250916]
[1756870759926,3.87,4331.9,4331.8,2.63890916]
[1756870760647,3.87,4331.9,4331.8,0.024]
[1756870762444,5.91672436,4331.9,4331.8,0.024]
[1756870762747,12.02912798,4331.9,4331.8,0.024]
[1756870762950,12.36397914,4331.9,4331.8,0.024]
[1756870763245,12.02912798,4331.9,4331.8,0.024]
[1756870764016,12.36397914,4331.9,4331.8,0.024]
[1756870764250,2.30864457,4331.6,4331.4,0.004]
[1756870764555,14.16312152,4331.5,4331.4,0.004]
[1756870764757,15.37462152,4331.5,4331.4,0.004]
[1756870765148,7.53430472,4331.5,4331.4,0.004]
[1756870765340,12.38394026,4331.5,4331.4,0.004]
[1756870765655,15.38394026,4331.5,4331.4,0.004]
[1756870767158,14.91594026,4331.5,4331.4,0.004]
[1756870767329,11.04694026,4331.5,4331.4,0.004]
[1756870767634,14.91594026,4331.5,4331.4,0.004]
[1756870767841,16.68518542,4331.5,4331.4,0.004]
[1756870768647,17.15318542,4331.5,4331.4,0.004]
[1756870769867,16.68518542,4331.5,4331.4,0.004]
[1756870771160,17.14948542,4331.5,4331.4,0.004]
[1756870771343,16.68518542,4331.5,4331.4,0.004]
[1756870771544,15.36407332,4331.5,4331.4,0.004]
[1756870771744,15.82837332,4331.5,4331.4,0.004]
[1756870771946,18.13704237,4331.5,4331.4,0.004]
[1756870773047,18.13704237,4331.5,4330.9,0.004]
[1756870773048,2.30881921,4331.3,4330.9,0.004]
[1756870773249,8.98232816,4331.0,4330.9,0.004]
[1756870773442,12.85132816,4331.0,4330.9,0.004]
[1756870773659,6.869,4331.0,4330.9,0.7957]
[1756870773855,12.85132816,4331.0,4330.9,0.7957]
[1756870774365,13.16792816,4331.0,4330.9,0.004]
[1756870774672,15.14758098,4331.0,4330.9,0.004]
[1756870775164,15.26278098,4331.0,4330.9,0.004]
[1756870775336,14.49158098,4331.0,4330.9,0.004]
[1756870776673,9.09752816,4331.0,4330.9,0.3037]
[1756870776862,12.96652816,4331.0,4330.9,0.3037]
[1756870777044,13.73772816,4331.0,4330.9,0.004]
[1756870778372,12.96752816,4331.0,4330.9,0.3037]
[1756870778670,13.73872816,4331.0,4330.9,0.004]
[1756870778835,15.19828098,4331.0,4330.9,0.004]
[1756870779466,14.74368098,4331.0,4330.9,0.004]
[1756870779668,14.42708098,4331.0,4330.9,0.004]
[1756870780064,14.74368098,4331.0,4330.9,0.004]
[1756870780269,14.42708098,4331.0,4330.9,0.004]
[1756870780470,14.74368098,4331.0,4330.9,0.004]
[1756870780890,15.19828098,4331.0,4330.9,0.004]
[1756870781245,14.74368098,4331.0,4330.9,0.004]
[1756870782172,9.09752816,4331.0,4330.9,0.7957]
[1756870782373,12.96752816,4331.0,4330.9,0.7957]
[1756870782571,12.96752816,4331.0,4330.9,0.004]
[1756870782962,13.73872816,4331.0,4330.9,0.004]
[1756870786175,13.28412816,4331.0,4330.9,0.004]
[1756870786475,15.50627857,4331.0,4330.9,0.004]
[1756870793992,15.97057857,4331.0,4330.9,0.004]
[1756870794372,16.06314941,4331.0,4330.9,0.004]
[1756870794772,15.59884941,4331.0,4330.9,0.004]
[1756870797773,3.0,4330.9,4330.5,0.004]
[1756870797980,8.98232816,4330.6,4330.5,0.004]
[1756870798170,13.16892816,4330.6,4330.5,0.004]
[1756870798506,14.31784322,4330.6,4330.5,0.004]
[1756870798993,14.43304322,4330.6,4330.5,0.004]
[1756870799186,12.01962068,4330.6,4330.5,0.004]
[1756870799398,15.88962068,4330.6,4330.5,0.004]
[1756870799600,16.32832068,4330.6,4330.5,0.004]
[1756870800259,9.79184322,4330.6,4330.5,0.2966]
[1756870800483,9.09752816,4330.6,4330.5,0.7958]
[1756870800689,12.96752816,4330.6,4330.5,0.7958]
[1756870801093,12.96752816,4330.6,4330.5,0.004]
[1756870801288,19.24845632,4330.6,4330.5,0.004]
[1756870801495,21.95506429,4330.6,4330.5,0.004]
[1756870801701,3.0,4330.5,4329.8,0.5222]
[1756870801895,6.09752816,4330.0,4329.8,0.023]
[1756870802065,3.87,4329.9,4329.8,0.023]
[1756870803074,4.1686,4329.9,4329.8,0.023]
[1756870803279,6.09752816,4330.0,4329.8,0.8148]
[1756870803534,3.87,4329.9,4329.8,3.12436685]
[1756870803816,3.87,4329.9,4329.8,0.8148]
[1756870804114,3.87,4329.9,4329.8,0.3156]
[1756870804606,3.87,4329.9,4329.8,3.5751755]
[1756870804607,9.85232816,4329.9,4329.8,3.5751755]
[1756870804973,9.85232816,4329.9,4329.8,3.1243755]
[1756870805198,9.85232816,4329.9,4329.8,0.8188]
[1756870805373,9.85232816,4329.9,4329.8,0.3196]
[1756870805571,5.98232816,4329.9,4329.8,3.1283755]
[1756870805801,9.85232816,4329.9,4329.8,3.1283755]
[1756870806003,9.85232816,4329.9,4329.8,0.027]
[1756870806004,11.13616098,4329.9,4329.8,0.027]
[1756870806214,11.57486098,4329.9,4329.8,0.027]
[1756870806588,10.83756098,4329.9,4329.8,0.027]
[1756870807611,11.57486098,4329.9,4329.8,0.027]
[1756870807781,11.13616098,4329.9,4329.8,0.027]
[1756870809210,5.3095755,4329.8,4329.3,0.004]
[1756870809397,5.30988309,4329.3,4329.1,0.003]
[1756870809595,8.7966,4329.2,4329.1,0.003]
[1756870809825,9.2353,4329.2,4329.1,0.003]
[1756870809991,4.628,4329.2,4329.1,0.7948]
[1756870810192,4.628,4329.2,4329.1,0.5022]
[1756870810390,4.628,4329.2,4329.1,0.003]
[1756870810391,8.498,4329.2,4329.1,0.003]
[1756870810888,8.7966,4329.2,4329.1,0.003]
[1756870811330,8.7966,4329.2,4328.6,2.31320836]
[1756870811331,3.0,4329.1,4328.6,0.003]
[1756870811510,5.98232816,4328.7,4328.6,0.003]
[1756870811697,3.0,4329.1,4328.6,2.31321577]
[1756870811889,1.628,4329.2,4328.6,0.2956]
[1756870812101,9.90132816,4329.1,4329.0,2.31000231]
[1756870812306,9.90132816,4329.1,4329.0,3.55260231]
[1756870812620,9.90132816,4329.1,4329.0,3.10180231]
[1756870814392,1.628,4329.2,4329.1,2.30994895]
[1756870814625,5.546,4329.2,4329.1,3.82422356]
[1756870814787,11.52832816,4329.2,4329.1,4.09372408]
[1756870815126,11.52832816,4329.2,4329.1,3.55254895]
[1756870816522,9.90032816,4329.2,4329.1,3.55254895]
[1756870817399,9.90032816,4329.2,4329.1,3.10174895]
[1756870817603,9.90032816,4329.2,4329.1,2.60254895]
[1756870817798,9.90032816,4329.2,4329.1,3.10174895]
[1756870818799,5.98232816,4329.2,4329.1,3.10174895]
[1756870819010,9.89832816,4329.2,4329.1,3.10174895]
[1756870821016,9.89832816,4329.2,4329.1,2.60254895]
[1756870821222,9.89832816,4329.2,4329.1,3.55254895]
[1756870821605,9.89532816,4329.2,4329.1,3.55254895]
[1756870821817,5.98232816,4329.2,4329.1,3.10174895]
[1756870822025,9.89732816,4329.2,4329.1,3.10174895]
[1756870822531,9.89632816,4329.2,4329.1,3.10174895]
[1756870824126,9.89632816,4329.2,4329.1,2.60254895]
[1756870824531,10.19492816,4329.2,4328.9,2.31002898]
[1756870824715,0.4387,4329.1,4329.0,2.30995129]
[1756870824909,6.71962816,4329.1,4329.0,2.30995129]
[1756870825116,6.28092816,4329.1,4329.0,2.30995129]
[1756870825336,1.628,4329.9,4329.0,2.30995129]
[1756870825337,1.628,4329.9,4329.1,2.30994895]
[1756870825540,1.628,4329.9,4329.4,2.30978888]
[1756870825541,0.69446132,4329.5,4329.4,2.30978888]
[1756870825832,2.981,4329.5,4329.4,3.10158888]
[1756870826042,8.96332816,4329.5,4329.4,3.10158888]
[1756870827539,0.001,4329.7,4329.6,2.30968218]
[1756870827838,9.89732816,4329.7,4329.6,2.30968218]
[1756870828019,9.89732816,4329.7,4329.6,2.60228218]
[1756870828562,0.001,4329.7,4329.6,3.55228218]
[1756870828703,0.001,4329.7,4329.6,4.88540929]
[1756870829515,0.001,4329.7,4329.6,3.93540929]
[1756870832444,0.001,4329.7,4329.6,4.08370929]
[1756870833526,0.001,4329.7,4329.6,3.62640929]
[1756870834230,0.001,4329.7,4329.6,2.30968218]
[1756870834437,0.001,4329.7,4329.6,2.60438218]
[1756870834635,0.001,4329.7,4329.6,3.20258218]
[1756870837249,0.001,4329.7,4329.6,3.15258218]
[1756870837640,0.001,4329.7,4329.6,2.37488218]
[1756870837844,0.001,4330.1,4330.0,2.30946882]
[1756870838037,0.001,4330.1,4330.0,7.01046882]
[1756870838239,1.629,4331.3,4331.2,2.30882896]
[1756870838553,3.911,4331.3,4331.2,2.60352896]
[1756870838747,3.911,4331.3,4331.2,3.20172896]
[1756870838950,3.911,4331.3,4331.2,2.71872896]
[1756870839149,0.001,4331.3,4331.2,2.71872896]
[1756870839448,1e-08,4331.5,4331.4,3.10072235]
[1756870840156,1e-08,4331.5,4331.4,3.79466642]
[1756870840527,7.61352623,4331.5,4331.4,2.30872235]
[1756870840728,8.53962623,4331.5,4330.9,3.00300063]
[1756870841034,7.30882622,4331.0,4330.7,2.30906769]
[1756870841239,0.3047,4330.8,4330.5,0.1152]
[1756870841439,0.9261,4330.7,4330.6,2.30913904]
[1756870841640,1.2308,4330.7,4330.6,2.30913904]
[1756870842227,0.7575,4330.7,4330.6,2.30913904]
[1756870843759,4.6825,4330.7,4330.6,2.30913904]
[1756870843937,3.925,4330.7,4330.6,2.60383904]
[1756870844141,3.925,4330.7,4330.6,3.08683904]
[1756870844362,7.87682622,4331.2,4331.1,2.30888227]
[1756870844560,12.10652622,4331.2,4331.1,2.30888227]
[1756870845133,12.57982622,4331.2,4331.0,2.30892783]
[1756870845365,0.4528,4331.1,4331.0,2.30893558]
[1756870845660,0.7575,4331.1,4331.0,2.30893558]
[1756870845956,0.69413514,4331.5,4331.4,2.30872235]
[1756870846158,5.37563514,4331.5,4331.4,2.30872235]
[1756870846359,4.68150001,4331.5,4331.4,2.30872235]
[1756870848044,3.92400001,4331.5,4331.4,2.60342235]
[1756870848244,3.92400001,4331.5,4331.4,3.08642235]
[1756870848580,1e-08,4331.5,4331.4,3.08642235]
[1756870849063,1e-08,4331.5,4331.4,4.20996698]
[1756870849636,1e-08,4331.5,4331.4,3.75266698]
[1756870850367,1e-08,4331.5,4331.4,3.84519329]
[1756870852360,1e-08,4331.5,4331.4,3.55049329]
[1756870852567,1e-08,4331.5,4331.4,7.76619329]
[1756870854067,1e-08,4331.5,4331.4,7.67366698]
[1756870854236,0.75750001,4331.5,4331.4,6.34292235]
[1756870854441,1.23080001,4331.5,4331.4,2.42392235]
[1756870854636,1.23080001,4331.5,4331.2,2.30881898]
[1756870854875,7.30882622,4331.3,4331.2,2.30881898]
[1756870855166,8.53962622,4331.3,4331.2,2.30881898]
[1756870855965,8.06632622,4331.3,4331.2,2.30881898]
[1756870856871,1e-08,4331.5,4331.4,2.30872235]
[1756870857666,0.30470001,4331.5,4331.4,2.30872235]
[1756870857839,0.75750001,4331.5,4331.4,2.30872235]
[1756870858661,0.30470001,4331.5,4331.4,2.30872235]
[1756870859266,1e-08,4331.5,4331.4,2.30872235]
[1756870859582,0.28600001,4331.5,4331.4,2.30872235]
[1756870860140,0.75280001,4331.5,4331.4,2.30872235]
[1756870860377,8.53942623,4331.5,4331.4,2.30872235]
[1756870860582,8.88767353,4331.5,4331.2,0.1152]
[1756870860881,0.9446,4331.4,4331.2,0.1152]
[1756870861080,0.1152,4331.3,4330.7,0.1152]
[1756870861243,0.4668,4331.2,4331.1,2.30886449]
[1756870861441,1.2306,4331.2,4331.1,2.30886449]
[1756870861742,0.7528,4331.2,4331.1,2.30886449]
[1756870862185,1.2306,4331.2,4331.1,2.30886449]
[1756870862582,1.2306,4331.2,4329.9,1.2569]
[1756870862791,7.30882622,4330.8,4330.7,2.30905294]
[1756870862987,7.59482622,4330.8,4330.6,2.3091409]
[1756870863192,4.3818,4330.7,4330.2,0.1152]
[1756870863495,4.3818,4330.7,4330.6,2.30914884]
[1756870863694,4.6678,4330.7,4330.6,2.30914884]
[1756870865072,3.915,4331.2,4330.6,1.6846376]
[1756870865402,3.915,4331.2,4331.1,2.31288227]
[1756870865996,4.201,4331.2,4331.1,2.31288227]
[1756870866295,4.6678,4331.2,4331.1,0.004]
[1756870866502,6.35478262,4331.2,4331.1,0.004]
[1756870867066,6.46998262,4331.2,4331.1,0.004]
[1756870867681,6.46998262,4331.2,4331.1,2.31288227]
[1756870868372,0.1152,4331.2,4331.1,2.60128227]
[1756870868601,1e-08,4331.5,4331.4,2.30872235]
[1756870868795,3.91400001,4331.5,4331.4,2.30872235]
[1756870870067,4.20000001,4331.5,4331.4,2.30872235]
[1756870870467,4.20000001,4331.5,4331.1,2.31288208]
[1756870870468,5.14460001,4331.5,4331.1,2.31288208]
[1756870870704,7.42402622,4331.3,4331.1,2.31288208]
[1756870871014,4.6658,4331.2,4331.1,2.31288208]
[1756870871170,0.1152,4331.3,4331.2,2.30882896]
[1756870871368,4.0282,4331.3,4331.2,2.30882896]
[1756870871568,4.781,4331.3,4331.1,0.004]
[1756870871775,0.9446,4331.2,4331.1,0.004]
[1756870872229,1.2306,4331.2,4331.1,0.004]
[1756870875014,4.2306,4331.2,4331.1,0.004]
[1756870875776,0.1152,4331.3,4331.1,0.2924]
[1756870876118,0.1152,4331.3,4331.2,2.30882896]
[1756870876319,4.0262,4331.3,4331.2,2.59722896]
[1756870876519,4.0262,4331.3,4331.2,2.30882896]
[1756870876800,3.912,4331.3,4331.2,2.42402896]
[1756870877017,4.6648,4331.3,4331.2,2.30882896]
[1756870877320,4.198,4331.3,4331.2,2.30882896]
[1756870877488,4.6648,4331.3,4331.2,2.30882896]
[1756870877989,3.912,4331.3,4331.2,2.30882896]
[1756870878388,1e-08,4331.5,4331.4,2.30872235]
[1756870878604,3.91400001,4331.5,4331.4,2.30872235]
[1756870878922,3.91400001,4331.5,4331.4,2.59712235]
[1756870881610,3.91400001,4331.5,4331.4,2.30872235]
[1756870883012,1e-08,4331.5,4331.4,2.59712235]
[1756870883200,1e-08,4331.5,4331.4,3.06202235]
[1756870884118,1e-08,4331.5,4331.4,4.12978572]
[1756870884416,1e-08,4331.5,4331.4,5.03698572]
[1756870886137,1e-08,4331.5,4331.4,4.56748572]
[1756870886496,0.75280001,4331.5,4331.4,6.33392235]
[1756870887015,1e-08,4331.5,4331.4,2.42392235]
[1756870888232,1e-08,4331.5,4331.4,2.71232235]
[1756870888935,1e-08,4331.5,4331.4,4.43872235]
[1756870898435,0.001,4331.6,4331.4,7.43872235]
[1756870898648,1e-08,4332.0,4331.9,3.10045587]
[1756870898934,1e-08,4332.0,4331.9,7.00645587]
[1756870899136,1e-08,4332.0,4331.9,7.41765587]
[1756870899340,1e-08,4332.0,4331.9,8.38475587]
[1756870899540,1e-08,4332.0,4331.9,8.84641836]
[1756870899738,1e-08,4332.4,4332.3,6.10024273]
[1756870899942,1e-08,4332.4,4332.3,11.74944273]
[1756870900140,1e-08,4332.4,4332.3,13.01254273]
[1756870900340,1e-08,4332.4,4332.3,12.54314273]
[1756870900549,1e-08,4332.4,4332.3,13.90899733]
[1756870900843,0.30880001,4332.4,4332.3,6.20829733]
[1756870901030,0.76310001,4332.4,4332.3,8.74944273]
[1756870901366,0.001,4334.4,4332.4,2.30818945]
[1756870901513,0.4543,4334.3,4334.2,2.30721221]
[1756870901835,1.2624,4334.3,4334.2,6.24121221]
[1756870902017,1.2624,4334.3,4334.2,6.35641221]
[1756870902213,1.2624,4334.3,4334.2,2.42241221]
[1756870903946,1.2624,4334.3,4334.2,0.1152]
[1756870904147,1.50394,4334.3,4334.2,2.30723086]
[1756870904348,1.3776,4334.3,4334.2,2.30723086]
[1756870905153,0.7631,4334.3,4334.2,2.30723086]
[1756870907852,0.3088,4334.3,4334.2,2.30723086]
[1756870908021,1.2624,4334.3,4334.2,2.30723086]
[1756870910132,0.7631,4334.3,4334.2,2.30723086]
[1756870910332,1.2624,4334.3,4334.2,2.30723086]
[1756870910736,0.7631,4334.3,4334.2,2.30723086]
[1756870911625,0.001,4334.4,4334.2,2.30723086]
[1756870911826,0.001,4334.4,4334.3,2.60317762]
[1756870912144,0.001,4334.4,4334.3,2.30717762]
[1756870913056,0.001,4334.4,4334.3,2.60317762]
[1756870913241,0.001,4334.4,4334.3,5.01896992]
[1756870913452,0.001,4334.4,4334.3,5.60356992]
[1756870916061,0.001,4334.4,4334.3,5.13416992]
[1756870917436,0.001,4334.4,4334.3,5.60356992]
[1756870918561,0.021,4334.8,4334.7,3.09896472]
[1756870918766,0.021,4334.8,4334.7,7.56356558]
[1756870918954,0.021,4334.8,4334.7,7.97476558]
[1756870919160,0.021,4334.8,4334.7,8.47246558]
[1756870920139,0.021,4334.8,4334.7,4.54846558]
[1756870920338,0.021,4334.8,4334.7,7.97376558]
[1756870921177,0.021,4334.8,4334.7,3.75476558]
[1756870921376,0.021,4334.8,4334.7,7.67776558]
[1756870922872,0.021,4334.8,4334.7,7.97776558]
[1756870923245,0.021,4334.8,4334.7,8.94056558]
[1756870923449,0.021,4334.8,4334.7,3.75476558]
[1756870923656,0.021,4334.8,4334.7,7.97476558]
[1756870924779,0.021,4334.8,4334.7,8.46386558]
[1756870925575,0.021,4334.8,4334.7,4.05476558]
[1756870925878,0.021,4334.8,4334.7,7.97376558]
[1756870926743,0.021,4334.8,4334.7,8.46286558]
[1756870927559,0.021,4334.8,4334.7,8.93656558]
[1756870927879,0.021,4334.8,4334.7,7.67176558]
[1756870927880,0.3313,4334.8,4334.7,7.67176558]
[1756870928579,0.021,4334.8,4334.7,7.67176558]
[1756870932183,0.7935,4334.8,4334.7,3.75476558]
[1756870932356,1.2487,4334.8,4334.7,7.12716472]
[1756870933376,0.7935,4334.8,4334.7,7.12716472]
[1756870933581,0.3313,4334.8,4334.7,7.12716472]
[1756870934359,0.7935,4334.8,4334.7,3.21416472]
[1756870934686,0.7935,4334.8,4334.7,0.1152]
[1756870934687,1.2487,4334.8,4334.7,0.1152]
[1756870934845,7.93812336,4334.8,4334.7,0.1152]
[1756870935050,7.93812336,4334.8,4334.0,2.019]
[1756870935051,8.05332336,4334.8,4334.1,0.1152]
[1756870935251,5.96777578,4334.5,4334.1,0.1152]
[1756870935746,6.27807578,4334.2,4333.8,0.004]
[1756870935948,0.1152,4334.1,4333.8,0.004]
[1756870936180,1.76366758,4334.1,4333.8,0.004]
[1756870936366,0.3103,4333.9,4333.8,0.004]
[1756870936661,0.3103,4333.9,4333.8,2.31144381]
[1756870936868,0.3103,4333.9,4333.8,0.004]
[1756870937188,7.19547578,4333.9,4333.8,0.004]
[1756870937352,7.99965012,4333.9,4333.8,0.004]
[1756870937956,13.30704069,4333.9,4333.8,0.004]
[1756870938374,10.99965012,4333.9,4333.8,0.004]
[1756870938572,0.4255,4333.9,4333.8,0.004]
[1756870938774,0.4622,4334.2,4334.0,2.3073125]
[1756870938969,0.3103,4334.1,4333.8,0.1192]
[1756870939174,0.7655,4334.1,4333.9,2.30738702]
[1756870939373,0.9174,4334.0,4333.9,2.30738702]
[1756870939604,1.2277,4334.0,4333.9,2.30738702]
[1756870939804,0.7725,4334.0,4333.9,2.30738702]
[1756870940211,1.2277,4334.0,4333.8,0.1192]
[1756870940490,0.4552,4333.9,4333.8,0.004]
[1756870940878,1.2277,4333.9,4333.8,0.004]
[1756870941202,0.7725,4333.9,4333.8,2.31144381]
[1756870941591,3.913,4334.6,4334.0,2.30733733]
[1756870941789,7.0282,4334.6,4334.4,2.30710983]
[1756870942093,7.4904,4334.6,4334.5,2.30707117]
[1756870942392,1.3429,4334.6,4334.2,2.30721249]
[1756870942687,0.9174,4334.5,4334.1,0.1152]
[1756870942886,0.9174,4334.5,4334.4,2.3071244]
[1756870943092,1.2277,4334.5,4334.4,2.3071244]
[1756870943870,0.1152,4334.6,4334.4,2.3071244]
[1756870944061,0.1152,4334.6,4334.5,2.30707117]
[1756870944264,0.8877,4334.6,4334.5,2.30707117]
[1756870946805,0.1152,4334.6,4334.5,2.60707117]
[1756870946964,0.1152,4334.6,4334.5,3.61066569]
[1756870947390,0.021,4334.8,4334.7,2.30696472]
[1756870947589,0.021,4334.8,4334.7,2.33003436]
[1756870947900,0.021,4334.8,4334.7,2.63003436]
[1756870948273,0.021,4334.8,4334.7,3.11913436]
[1756870948498,0.021,4334.8,4334.7,3.72241729]
[1756870949005,0.021,4334.8,4334.7,3.21024765]
[1756870952172,0.021,4334.8,4334.7,3.67994765]
[1756870953103,0.021,4334.8,4334.7,3.21024765]
[1756870954016,0.021,4334.8,4334.7,2.91024765]
[1756870954785,0.3188,4334.8,4334.7,2.91024765]
[1756870955116,0.7812,4334.8,4334.7,2.30696472]
[1756870955296,1.2451,4334.8,4334.5,0.1152]
[1756870955622,0.7827,4334.8,4334.5,0.1152]
[1756870955914,0.3188,4334.8,4334.7,2.30696472]
[1756870956114,0.7812,4334.8,4334.7,2.30696472]
[1756870956988,0.7812,4334.8,4334.5,2.42226662]
[1756870956989,1.2451,4334.8,4334.5,2.4222623]
[1756870957317,1.2451,4334.8,4334.6,2.30701794]
[1756870957318,0.9263,4334.7,4334.6,2.30701794]
[1756870957803,1.2241,4334.7,4334.6,2.30701794]
[1756870958606,1.2241,4334.7,4334.5,0.1152]
[1756870958607,1.2241,4334.7,4334.5,2.30702576]
[1756870958818,0.4624,4334.6,4334.3,0.1152]
[1756870959025,0.4624,4334.6,4334.5,2.30707117]
[1756870959203,0.7602,4334.6,4334.5,2.30707117]
[1756870960025,1.2241,4334.6,4334.3,0.1152]
[1756870960226,0.4639,4334.5,4334.3,0.1152]
[1756870960402,0.4639,4334.5,4334.3,2.42237517]
[1756870960597,0.2978,4334.4,4334.3,2.42237517]
[1756870960798,0.7602,4334.4,4334.3,2.42237517]
[1756870961288,0.021,4334.8,4334.7,2.30696472]
[1756870961924,0.021,4334.8,4334.7,2.61116472]
[1756870963600,0.3188,4334.8,4334.6,0.1152]
[1756870963910,0.4624,4334.7,4334.6,2.42219012]
[1756870964118,0.7602,4334.7,4334.6,2.42219012]
[1756870964321,0.7602,4334.7,4334.6,0.1152]
[1756870964530,1.34861,4334.7,4334.2,2.30722209]
[1756870964825,0.4624,4334.6,4334.3,2.3071712]
[1756870965331,0.2978,4334.4,4334.3,2.3071712]
[1756870965798,0.7602,4334.4,4334.3,2.3071712]
[1756870965999,0.1362,4334.8,4334.2,2.42241789]
[1756870966305,0.4624,4334.7,4334.4,2.30709645]
[1756870966491,0.2978,4334.5,4334.4,2.30709645]
[1756870967394,0.1362,4334.8,4334.4,2.30709645]
[1756870967395,0.1362,4334.8,4334.4,0.3042]
[1756870967600,0.021,4334.8,4334.7,2.30696472]
[1756870968508,0.021,4334.8,4334.7,2.61116472]
[1756870969017,0.3188,4334.8,4334.5,2.30703481]
[1756870969334,0.4624,4334.7,4334.6,2.30701794]
[1756870969519,0.7602,4334.7,4334.6,2.30701794]
[1756870970513,0.7602,4334.7,4334.5,2.30707084]
[1756870970828,0.4624,4334.6,4334.5,2.30707084]
[1756870971030,0.7602,4334.6,4334.5,2.30707084]
[1756870971696,0.1362,4334.8,4334.5,2.30707084]
[1756870971697,0.1362,4334.8,4334.7,2.30696472]
[1756870972098,0.021,4334.8,4334.7,3.08086472]
[1756870972308,0.021,4334.8,4334.7,2.61116472]
[1756870972634,0.3188,4334.8,4334.7,2.30696472]
[1756870972834,0.7812,4334.8,4334.5,0.1152]
[1756870973032,0.4624,4334.7,4334.5,0.1152]
[1756870973222,0.9263,4334.7,4334.5,0.1152]
[1756870973428,0.7602,4334.6,4334.4,2.30712331]
[1756870973803,0.4624,4334.5,4334.4,2.30712331]
[1756870974133,0.7602,4334.5,4334.4,2.30712331]
[1756870977931,0.1362,4334.8,4334.7,2.30696472]
[1756870978131,0.1362,4334.8,4334.7,3.52636472]
[1756870978302,0.021,4334.8,4334.7,4.05380808]
[1756870978497,0.021,4334.8,4334.7,4.16900808]
[1756870979904,0.021,4334.8,4334.7,3.69930808]
[1756870980228,0.021,4334.8,4334.7,3.70070808]
[1756870980412,0.021,4334.8,4334.7,3.39510808]
[1756870980610,0.7626,4334.8,4334.3,3.901]
[1756870980810,0.4431,4334.7,4334.6,2.30701575]
[1756870981216,0.7416,4334.7,4334.6,2.30701575]
[1756870981617,0.021,4334.8,4334.7,2.30696472]
[1756870982016,0.021,4334.8,4334.7,3.06686472]
[1756870982320,0.021,4334.8,4334.7,3.18206472]
[1756870982639,0.021,4334.8,4334.7,4.16583277]
[1756870982834,0.021,4334.8,4334.7,0.1152]
[1756870983140,0.7626,4334.8,4334.7,2.30696472]
[1756870983713,0.3195,4334.8,4334.7,2.30696472]
[1756870984712,1.2541,4334.8,4334.5,0.1152]
[1756870984908,0.4431,4334.7,4334.4,2.30710602]
[1756870985327,0.2985,4334.5,4334.4,2.30710602]
[1756870985855,0.7416,4334.5,4334.3,0.1192]
[1756870986041,0.7416,4334.5,4334.3,2.42635453]
[1756870986256,0.7416,4334.5,4334.4,2.3071244]
[1756870986627,0.7416,4334.5,4334.3,0.004]
[1756870986830,0.7416,4334.5,4334.4,2.3071244]
[1756870988217,0.7416,4334.5,4334.3,0.004]
[1756870989518,0.7416,4334.5,4334.4,2.3071244]
[1756870990372,0.7416,4334.5,4334.3,2.31116936]
[1756870990668,0.4431,4334.4,4334.3,2.3111281]
[1756870990840,0.6277,4334.8,4334.3,2.3111281]
[1756870991041,0.4431,4334.7,4334.4,2.30710573]
[1756870991258,0.1362,4334.8,4334.3,0.004]
[1756870991439,0.021,4334.8,4334.5,0.1152]
[1756870991660,0.4641,4334.8,4334.5,0.1152]
[1756870991831,0.4641,4334.8,4334.7,2.30696472]
[1756870992032,0.7626,4334.8,4334.7,2.30696472]
[1756870992252,0.3195,4334.8,4334.7,2.30696472]
[1756870993374,0.021,4334.8,4334.7,2.61256472]
[1756870993573,0.021,4334.8,4334.7,3.06686472]
[1756870995163,0.021,4334.8,4334.5,2.42224556]
[1756870995365,0.021,4334.8,4334.5,0.1152]
[1756870995570,0.021,4334.8,4334.7,2.30696472]
[1756870997170,0.3195,4334.8,4334.6,2.30700735]
[1756870997373,0.7626,4334.8,4334.7,2.30696472]
[1756870997802,0.3195,4334.8,4334.7,2.30696472]
[1756870998392,0.3195,4334.8,4334.6,2.30700898]
[1756870998547,0.3195,4334.8,4334.5,0.1152]
[1756870998548,0.4431,4334.7,4334.5,0.1152]
[1756870998753,0.4431,4334.7,4334.4,2.30712339]
[1756870998754,0.9346,4334.7,4334.4,2.30712339]
[1756870998948,0.4431,4334.7,4334.5,2.30706844]
[1756870999148,0.2985,4334.6,4334.5,2.30706844]
[1756870999661,0.7416,4334.6,4334.4,2.3071175]
[1756870999959,0.4431,4334.5,4334.4,2.3071175]
[1756871000154,1.0708,4334.8,4334.3,0.004]
[1756871000359,1.0708,4334.8,4334.4,2.30707853]
[1756871000688,0.4431,4334.7,4334.4,2.30712279]
[1756871001687,0.2985,4334.5,4334.4,2.30712279]
[1756871002446,0.2985,4334.5,4334.3,0.004]
[1756871003000,0.2985,4334.5,4334.3,2.31113463]
[1756871003207,0.4431,4334.6,4334.5,2.30707117]
[1756871003361,0.1362,4334.8,4334.5,2.30707117]